fUSD/lending_fUSD_20250804
["ID","MTS","AMOUNT","RATE_DAILY","PERIOD"]
[377247946,1754306503299,-1147.55464903,0.00034003,30]
[377247947,1754306503330,-1147.55464903,0.00034693,31]
[377247948,1754306503360,-1147.55464903,0.00035383,32]
[377247949,1754306503393,-1147.55464903,0.00036072,34]
[377247950,1754306503425,-1147.55464903,0.00036762,35]
[377247951,1754306503457,-1147.55464903,0.00037452,36]
[377247952,1754306503491,-1147.55464903,0.00038141,38]
[377247953,1754306503556,-150.0,0.00038356,12]
[377247954,1754306503628,-1147.55464903,0.00038831,39]
[377247955,1754306503686,-342.726105,0.00038904,14]
[377247956,1754306503746,-342.726105,0.00039178,14]
[377247957,1754306503803,-342.726105,0.00039452,14]
[377247958,1754306503837,-1147.55464903,0.00039521,40]
[377247959,1754306503893,-342.726105,0.00039726,14]
[377247960,1754306503950,-342.726105,0.0004,14]
[377247961,1754306503983,-1147.55464903,0.0004021,42]
[377247962,1754306504101,-1147.55464903,0.000409,43]
[377247963,1754306504333,-150.0,0.00042822,30]
[377247964,1754306504450,-908.5050018,0.00043835,120]
[377247965,1754306504477,-819.24,0.00043835,120]
[377247966,1754306504502,-151.0,0.00043835,14]
[377247967,1754306504529,-151.0,0.00043835,14]
[377247968,1754306504556,-2570.9,0.00043835,120]
[377247969,1754306504581,-873.02,0.00043835,120]
[377247970,1754306504607,-682.78,0.00043835,120]
[377247971,1754306504631,-400.0,0.00043835,120]
[377247972,1754306504657,-1261.3,0.00043835,120]
[377247973,1754306504682,-442.60471682,0.00043835,120]
[377247974,1754306504706,-481.57,0.00043835,120]
[377247975,1754306504732,-1543.68,0.00043835,120]
[377247976,1754306504757,-1024.03,0.00043835,120]
[377247977,1754306504783,-1515.84,0.00043835,120]
[377247978,1754306504809,-1205.46,0.00043835,120]
[377247979,1754306504834,-522.75,0.00043835,120]
[377247980,1754306504859,-896.46,0.00043835,120]
[377247981,1754306504884,-884.82,0.00043835,120]
[377247982,1754306504910,-3174.41,0.00043835,120]
[377247983,1754306504935,-862.79,0.00043835,120]
[377247984,1754306504959,-955.83,0.00043835,120]
[377247985,1754306504984,-1839.81,0.00043835,120]
[377247986,1754306505009,-1796.51,0.00043835,120]
[377247987,1754306505035,-1831.16,0.00043835,120]
[377247988,1754306505060,-1213.41,0.00043835,120]
[377247989,1754306505087,-1175.01,0.00043835,120]
[377247990,1754306505112,-1695.82,0.00043835,120]
[377247991,1754306505137,-1912.8,0.00043835,120]
[377247992,1754306505162,-1288.77,0.00043835,120]
[377247993,1754306505187,-1360.54,0.00043835,120]
[377247994,1754306505212,-1992.06,0.00043835,120]
[377247995,1754306505237,-400.92,0.00043835,120]
[377247996,1754306505265,-445.94,0.00043835,120]
[377247997,1754306505291,-752.66,0.00043835,120]
[377247998,1754306505316,-470.47,0.00043835,120]
[377247999,1754306505346,-711.02,0.00043835,120]
[377248000,1754306505371,-1734.6,0.00043835,120]
[377248001,1754306505399,-1604.06,0.00043835,120]
[377248002,1754306505426,-463.59,0.00043835,120]
[377248003,1754306505453,-2162.34,0.00043835,120]
[377248004,1754306505479,-1867.31,0.00043835,120]
[377248005,1754306505506,-400.0,0.00043835,120]
[377248006,1754306505533,-1240.53,0.00043835,120]
[377248007,1754306505559,-1627.99,0.00043835,120]
[377248008,1754306505586,-1940.12,0.00043835,120]
[377248009,1754306505613,-1177.05,0.00043835,120]
[377248010,1754306505638,-646.41,0.00043835,120]
[377248011,1754306505664,-1664.01,0.00043835,120]
[377248012,1754306505690,-400.0,0.00043835,120]
[377248013,1754306505716,-400.0,0.00043835,120]
[377248014,1754306505741,-474.1301266,0.00043835,120]
[377248015,1754306505767,-1393.11,0.00043835,120]
[377248016,1754306505796,-1212.17,0.00043835,120]
[377248017,1754306505821,-1143.62,0.00043835,120]
[377248018,1754306505847,-1688.91,0.00043835,120]
[377248019,1754306505873,-2438.44,0.00043835,120]
[377248020,1754306505899,-582.58,0.00043835,120]
[377248021,1754306505926,-1757.46,0.00043835,120]
[377248022,1754306505952,-1285.51,0.00043835,120]
[377248023,1754306505977,-855.75,0.00043835,120]
[377248024,1754306506003,-715.2,0.00043835,120]
[377248025,1754306506029,-664.08,0.00043835,120]
[377248026,1754306506054,-1384.01,0.00043835,120]
[377248027,1754306506079,-316.20960411,0.00043835,120]
[377248028,1754306506104,-527.64,0.00043835,120]
[377248029,1754306506129,-1992.32,0.00043835,120]
[377248030,1754306506154,-589.57,0.00043835,120]
[377248031,1754306506178,-1068.88,0.00043835,120]
[377248032,1754306506203,-869.96,0.00043835,120]
[377248033,1754306506228,-7646.84,0.00043835,120]
[377248034,1754306506253,-615.92,0.00043835,120]
[377248035,1754306506279,-8594.29,0.00043835,120]
[377248036,1754306506304,-1726.83,0.00043835,120]
[377248037,1754306506331,-719.27,0.00043835,120]
[377248038,1754306506356,-1417.99,0.00043835,120]
[377248039,1754306506384,-1557.01,0.00043835,120]
[377248040,1754306506410,-922.56,0.00043835,120]
[377248041,1754306506436,-1352.45,0.00043835,120]
[377248042,1754306506461,-1617.85,0.00043835,120]
[377248043,1754306506487,-1049.13,0.00043835,120]
[377248044,1754306506512,-1275.21,0.00043835,120]
[377248045,1754306506539,-1850.44,0.00043835,120]
[377248046,1754306506565,-436.11043661,0.00043835,120]
[377248047,1754306506590,-3372.73,0.00043835,120]
[377248048,1754306506616,-2413.24,0.00043835,120]
[377248049,1754306506642,-462.58,0.00043835,120]
[377248050,1754306506668,-1367.05,0.00043835,120]
[377248051,1754306506694,-3347.26,0.00043835,120]
[377248052,1754306506719,-400.0,0.00043835,120]
[377248053,1754306506745,-1737.5,0.00043835,120]
[377248054,1754306506773,-792.56,0.00043835,120]
[377248055,1754306506800,-482.37,0.00043835,120]
[377248056,1754306506826,-1101.08,0.00043835,120]
[377248057,1754306506852,-1034.76,0.00043835,120]
[377248058,1754306506883,-848.03,0.00043835,120]
[377248059,1754306506908,-1266.69,0.00043835,120]
[377248060,1754306506934,-400.0,0.00043835,120]
[377248061,1754306506960,-530.71,0.00043835,120]
[377248062,1754306506987,-1473.63,0.00043835,120]
[377248063,1754306507013,-1069.53,0.00043835,120]
[377248064,1754306507040,-2247.29,0.00043835,120]
[377248065,1754306507066,-4477.57,0.00043835,120]
[377248066,1754306507092,-1968.62,0.00043835,120]
[377248067,1754306507120,-3404.85,0.00043835,120]
[377248068,1754306507145,-1810.06,0.00043835,120]
[377248069,1754306507171,-2083.77,0.00043835,120]
[377248070,1754306507196,-1201.96,0.00043835,120]
[377248071,1754306507221,-2468.29,0.00043835,120]
[377248072,1754306507246,-503.95,0.00043835,120]
[377248073,1754306507273,-1858.5,0.00043835,120]
[377248074,1754306507300,-4807.7,0.00043835,120]
[377248075,1754306507325,-489.8,0.00043835,120]
[377248076,1754306507351,-6521.48,0.00043835,120]
[377248077,1754306507378,-400.0,0.00043835,120]
[377248078,1754306507408,-408.05,0.00043835,120]
[377248079,1754306507435,-400.0,0.00043835,120]
[377248080,1754306507462,-1932.33,0.00043835,120]
[377248081,1754306507489,-377.59561876,0.00043835,120]
[377248082,1754306507517,-13551.98,0.00043835,120]
[377248083,1754306507543,-1962.49,0.00043835,120]
[377248084,1754306507569,-1956.19,0.00043835,120]
[377248085,1754306507595,-5941.99,0.00043835,120]
[377248086,1754306507621,-633.55,0.00043835,120]
[377248087,1754306507649,-3223.77,0.00043835,120]
[377248088,1754306507675,-2158.98,0.00043835,120]
[377248089,1754306507701,-597.5,0.00043835,120]
[377248090,1754306507728,-667.04,0.00043835,120]
[377248091,1754306507756,-1701.62,0.00043835,120]
[377248092,1754306507787,-6788.37,0.00043835,120]
[377248093,1754306509230,-427.38558851,0.00043835,120]
[377248094,1754306509300,-1510.11,0.00043835,120]
[377248095,1754306509330,-1888.16,0.00043835,120]
[377248096,1754306509360,-1987.23,0.00043835,120]
[377248097,1754306509401,-2404.75,0.00043835,120]
[377248098,1754306509437,-8266.69,0.00043835,120]
[377248099,1754306509466,-676.97,0.00043835,120]
[377248100,1754306509494,-949.12,0.00043835,120]
[377248101,1754306509523,-2500.38,0.00043835,120]
[377248102,1754306509553,-3084.99,0.00043835,120]
[377248103,1754306509581,-2548.22,0.00043835,120]
[377248104,1754306509608,-673.78,0.00043835,120]
[377248105,1754306509637,-3541.77,0.00043835,120]
[377248106,1754306509665,-1188.87,0.00043835,120]
[377248107,1754306509698,-508.94,0.00043835,120]
[377248108,1754306509727,-590.95,0.00043835,120]
[377248109,1754306509755,-1487.14,0.00043835,120]
[377248110,1754306509784,-995.62,0.00043835,120]
[377248111,1754306509815,-480.789843,0.00043835,120]
[377248112,1754306509843,-2691.96,0.00043835,120]
[377248113,1754306509872,-2381.9,0.00043835,120]
[377248114,1754306509900,-2267.73,0.00043835,120]
[377248115,1754306509930,-2413.42,0.00043835,120]
[377248116,1754306509958,-4614.34,0.00043835,120]
[377248117,1754306509986,-1791.84,0.00043835,120]
[377248118,1754306510014,-2667.37,0.00043835,120]
[377248119,1754306510041,-1827.5,0.00043835,120]
[377248120,1754306510072,-797.66,0.00043835,120]
[377248121,1754306510101,-568.78,0.00043835,120]
[377248122,1754306510128,-1375.84,0.00043835,120]
[377248123,1754306510155,-1662.7,0.00043835,120]
[377248124,1754306510181,-1303.69,0.00043835,120]
[377248125,1754306510209,-2217.64,0.00043835,120]
[377248126,1754306510236,-1643.13,0.00043835,120]
[377248127,1754306510265,-421.46,0.00043835,120]
[377248128,1754306510296,-5728.66,0.00043835,120]
[377248129,1754306510323,-1365.06,0.00043835,120]
[377248130,1754306510350,-1940.39,0.00043835,120]
[377248131,1754306510381,-916.27,0.00043835,120]
[377248132,1754306510410,-1555.63,0.00043835,120]
[377248133,1754306510438,-952.93,0.00043835,120]
[377248134,1754306510465,-1561.03,0.00043835,120]
[377248135,1754306510492,-1682.25,0.00043835,120]
[377248136,1754306510519,-4041.7,0.00043835,120]
[377248137,1754306510546,-681.74,0.00043835,120]
[377248138,1754306510574,-753.55,0.00043835,120]
[377248139,1754306510600,-994.43,0.00043835,120]
[377248140,1754306510627,-3172.76,0.00043835,120]
[377248141,1754306510655,-3111.11,0.00043835,120]
[377248142,1754306510683,-1679.47,0.00043835,120]
[377248143,1754306510711,-1270.32,0.00043835,120]
[377248144,1754306510739,-469.66,0.00043835,120]
[377248145,1754306510767,-1541.62,0.00043835,120]
[377248146,1754306510795,-400.0,0.00043835,120]
[377248147,1754306510822,-2263.83,0.00043835,120]
[377248148,1754306510850,-3319.51,0.00043835,120]
[377248149,1754306510895,-495.94,0.00043835,120]
[377248150,1754306510925,-2509.47,0.00043835,120]
[377248151,1754306510954,-1990.45,0.00043835,120]
[377248152,1754306510981,-605.16,0.00043835,120]
[377248153,1754306511010,-718.33,0.00043835,120]
[377248154,1754306511042,-1568.27,0.00043835,120]
[377248155,1754306511071,-400.0,0.00043835,120]
[377248156,1754306511100,-4024.2,0.00043835,120]
[377248157,1754306511127,-1607.54,0.00043835,120]
[377248158,1754306511324,-1497.99,0.00043835,120]
[377248159,1754306511354,-1880.05,0.00043835,120]
[377248160,1754306511383,-1029.57,0.00043835,120]
[377248161,1754306511410,-2071.43,0.00043835,120]
[377248162,1754306511441,-2736.35,0.00043835,120]
[377248163,1754306511469,-1863.23,0.00043835,120]
[377248164,1754306511496,-1402.16,0.00043835,120]
[377248165,1754306511523,-519.5,0.00043835,120]
[377248166,1754306511551,-6384.69,0.00043835,120]
[377248167,1754306511579,-1001.01,0.00043835,120]
[377248168,1754306511606,-1568.88,0.00043835,120]
[377248169,1754306511632,-1290.6,0.00043835,120]
[377248170,1754306511660,-2091.85,0.00043835,120]
[377248171,1754306511687,-980.14,0.00043835,120]
[377248172,1754306511714,-2142.0,0.00043835,120]
[377248173,1754306511742,-1146.32,0.00043835,120]
[377248174,1754306511771,-2149.98,0.00043835,120]
[377248175,1754306511799,-285.71682007,0.00043835,120]
[377248176,1754306511831,-445.44,0.00043835,120]
[377248177,1754306511859,-2683.34,0.00043835,120]
[377248178,1754306511889,-999.0,0.00043835,120]
[377248179,1754306511917,-589.85,0.00043835,120]
[377248180,1754306511946,-400.0,0.00043835,120]
[377248181,1754306511973,-1580.71,0.00043835,120]
[377248182,1754306512001,-1625.1,0.00043835,120]
[377248183,1754306512030,-1328.71,0.00043835,120]
[377248184,1754306512059,-1405.66,0.00043835,120]
[377248185,1754306512088,-3167.75,0.00043835,120]
[377248186,1754306512116,-2014.45,0.00043835,120]
[377248187,1754306512142,-586.64,0.00043835,120]
[377248188,1754306512170,-215.16140805,0.00043835,120]
[377248189,1754306512197,-5175.72,0.00043835,120]
[377248190,1754306512224,-1391.91,0.00043835,120]
[377248191,1754306512252,-4476.5,0.00043835,120]
[377248192,1754306512280,-400.0,0.00043835,120]
[377248193,1754306512307,-1104.52,0.00043835,120]
[377248194,1754306512334,-1737.45,0.00043835,120]
[377248195,1754306512361,-2248.87,0.00043835,120]
[377248196,1754306512390,-1517.37,0.00043835,120]
[377248197,1754306512419,-636.35,0.00043835,120]
[377248198,1754306512447,-1733.65,0.00043835,120]
[377248199,1754306512475,-436.1,0.00043835,120]
[377248200,1754306512505,-3263.75,0.00043835,120]
[377248201,1754306512533,-2109.62,0.00043835,120]
[377248202,1754306512562,-1329.24,0.00043835,120]
[377248203,1754306512590,-29546.07,0.00043835,120]
[377248204,1754306512619,-1083.17,0.00043835,120]
[377248205,1754306512648,-1234.35,0.00043835,120]
[377248206,1754306512676,-644.79,0.00043835,60]
[377248207,1754306512704,-400.0,0.00043835,120]
[377248208,1754306512733,-400.0,0.00043835,120]
[377248209,1754306512760,-6168.18,0.00043835,120]
[377248210,1754306512789,-3988.18,0.00043835,120]
[377248211,1754306512819,-468.62,0.00043835,120]
[377248212,1754306512846,-1241.95,0.00043835,120]
[377248213,1754306512874,-859.615558,0.00043835,120]
[377248214,1754306512902,-1127.15,0.00043835,120]
[377248215,1754306512928,-1315.13,0.00043835,14]
[377248216,1754306512956,-1319.78,0.00043835,120]
[377248217,1754306512983,-449.92548848,0.00043835,120]
[377248218,1754306513011,-550.876965,0.00043835,120]
[377248219,1754306513040,-3654.39,0.00043835,120]
[377248220,1754306513068,-701.03,0.00043835,120]
[377248221,1754306513095,-650.99,0.00043835,120]
[377248222,1754306513122,-1025.95,0.00043835,120]
[377248223,1754306513150,-6352.59,0.00043835,120]
[377248224,1754306513178,-992.4,0.00043835,120]
[377248225,1754306513205,-1071.98,0.00043835,120]
[377248226,1754306513233,-452.76,0.00043835,120]
[377248227,1754306513260,-687.27,0.00043835,120]
[377248228,1754306513290,-400.0,0.00043835,120]
[377248229,1754306513322,-889.39,0.00043835,120]
[377248230,1754306513348,-878.355385,0.00043835,120]
[377248231,1754306513378,-534.51,0.00043835,120]
[377248232,1754306513406,-2654.68,0.00043835,120]
[377248233,1754306513434,-892.92,0.00043835,120]
[377248234,1754306513462,-811.05,0.00043835,120]
[377248235,1754306513489,-400.0,0.00043835,120]
[377248236,1754306513517,-558.56,0.00043835,120]
[377248237,1754306513544,-528.53,0.00043835,118]
[377248238,1754306513571,-628.82,0.00043835,120]
[377248239,1754306513598,-235.29,0.00043836,30]
[377248240,1754306513624,-356.48,0.00043836,30]
[377248241,1754306513650,-1179.29,0.00043856,30]
[377248242,1754306513678,-1179.29,0.00043856,30]
[377248243,1754306513704,-1179.29,0.00043856,30]
[377248244,1754306513730,-1179.29,0.00043856,30]
[377248245,1754306513757,-1179.29,0.00043856,30]
[377248246,1754306513785,-2358.58,0.00043856,30]
[377248247,1754306513813,-1179.29,0.00043856,30]
[377248248,1754306513840,-1179.29,0.00043856,30]
[377248249,1754306513867,-1179.29,0.00043856,30]
[377248250,1754306513896,-1179.29,0.00043856,30]
[377248251,1754306513923,-1179.29,0.00043856,30]
[377248252,1754306513950,-750.19,0.00043856,30]
[377248253,1754306513977,-448.15,0.00043869,120]
[377248254,1754306514010,-2110.0,0.00043965,30]
[377248255,1754306514356,-50000.0,0.00044,44]
[377248256,1754306514386,-50000.0,0.00044,54]
[377248257,1754306514412,-1000.0,0.00044,30]
[377248258,1754306514439,-652.46739545,0.00044,120]
[377248259,1754306514464,-206.86235254,0.00044,120]
[377248260,1754306514490,-547.1938562,0.00044,120]
[377248261,1754306514516,-449.1960482,0.00044,120]
[377248262,1754306514544,-504.0,0.00044008,11]
[377248263,1754306514570,-239.0,0.000441,30]
[377248264,1754306514595,-379.0,0.000441,30]
[377248265,1754306514621,-400.0,0.00044108,120]
[377248266,1754306514648,-418.33,0.00044108,120]
[377248267,1754306514674,-400.0,0.00044108,120]
[377248268,1754306514699,-400.0,0.00044108,120]
[377248269,1754306514726,-941.25,0.00044108,120]
[377248270,1754306514753,-429.83,0.00044108,120]
[377248271,1754306514782,-400.0,0.00044108,120]
[377248272,1754306514810,-731.88,0.00044108,120]
[377248273,1754306514837,-851.42,0.00044108,120]
[377248274,1754306514863,-461.57,0.00044108,120]
[377248275,1754306514892,-1138.15,0.00044108,120]
[377248276,1754306514917,-628.84,0.00044108,120]
[377248277,1754306514943,-400.0,0.00044108,120]
[377248278,1754306514970,-400.0,0.00044108,120]
[377248279,1754306514996,-400.0,0.00044108,120]
[377248280,1754306515026,-243.09192964,0.00044108,120]
[377248281,1754306515057,-400.0,0.00044108,120]
[377248282,1754306515088,-482.18,0.00044108,120]
[377248283,1754306515116,-432.02,0.00044108,120]
[377248284,1754306515143,-1316.03,0.00044108,120]
[377248285,1754306515170,-400.0,0.00044108,120]
[377248286,1754306515199,-400.0,0.00044108,120]
[377248287,1754306515225,-560.27,0.00044108,120]
[377248288,1754306515252,-400.0,0.00044108,120]
[377248289,1754306515280,-400.0,0.00044108,120]
[377248290,1754306515306,-400.0,0.00044108,120]
[377248291,1754306515332,-408.46,0.00044108,120]
[377248292,1754306515358,-516.63,0.00044108,120]
[377248293,1754306515386,-400.0,0.00044108,120]
[377248294,1754306515412,-497.81,0.00044108,120]
[377248295,1754306515439,-400.0,0.00044108,120]
[377248296,1754306515468,-500.88,0.00044108,120]
[377248297,1754306515494,-400.0,0.00044108,120]
[377248298,1754306515524,-850.7,0.00044108,120]
[377248299,1754306515551,-400.0,0.00044108,120]
[377248300,1754306515578,-689.37,0.00044108,120]
[377248301,1754306515605,-400.0,0.00044108,120]
[377248302,1754306515632,-1068.66,0.00044108,120]
[377248303,1754306515659,-400.0,0.00044108,120]
[377248304,1754306515685,-3713.81,0.00044108,120]
[377248305,1754306515712,-400.0,0.00044108,120]
[377248306,1754306515739,-737.42,0.00044108,120]
[377248307,1754306515768,-400.0,0.00044108,120]
[377248308,1754306515797,-400.0,0.00044108,120]
[377248309,1754306515824,-430.1,0.00044108,120]
[377248310,1754306515852,-400.0,0.00044108,120]
[377248311,1754306515879,-661.25,0.00044108,120]
[377248312,1754306515906,-837.99,0.00044108,120]
[377248313,1754306515934,-1715.94,0.00044108,120]
[377248314,1754306515961,-717.42,0.00044108,120]
[377248315,1754306515988,-793.32,0.00044108,120]
[377248316,1754306516015,-506.84,0.00044108,120]
[377248317,1754306516043,-504.77,0.00044108,120]
[377248318,1754306516072,-3337.65,0.00044108,120]
[377248319,1754306516099,-400.0,0.00044108,120]
[377248320,1754306516126,-400.0,0.00044108,120]
[377248321,1754306516152,-450.18,0.00044108,120]
[377248322,1754306516179,-529.75,0.00044108,120]
[377248323,1754306516206,-400.0,0.00044108,120]
[377248324,1754306516232,-400.0,0.00044108,120]
[377248325,1754306516259,-420.77,0.00044108,120]
[377248326,1754306516287,-400.0,0.00044108,120]
[377248327,1754306516314,-400.0,0.00044108,120]
[377248328,1754306516340,-400.0,0.00044108,120]
[377248329,1754306516367,-422.93,0.00044108,120]
[377248330,1754306516397,-1808.3,0.00044108,120]
[377248331,1754306516424,-400.0,0.00044108,120]
[377248332,1754306516451,-400.0,0.00044108,120]
[377248333,1754306516477,-463.37,0.00044108,120]
[377248334,1754306516504,-731.94,0.00044108,120]
[377248335,1754306516532,-400.0,0.00044108,120]
[377248336,1754306516560,-1103.61,0.00044108,120]
[377248337,1754306516588,-2963.19,0.00044108,120]
[377248338,1754306516946,-400.0,0.00044108,120]
[377248339,1754306516974,-400.0,0.00044108,120]
[377248340,1754306517002,-400.0,0.00044108,120]
[377248341,1754306517028,-400.0,0.00044108,120]
[377248342,1754306517054,-455.31,0.00044108,120]
[377248343,1754306517080,-400.0,0.00044108,120]
[377248344,1754306517107,-918.79,0.00044108,30]
[377248345,1754306517133,-866.27,0.00044108,120]
[377248346,1754306517159,-400.0,0.00044108,120]
[377248347,1754306517184,-823.73,0.00044108,120]
[377248348,1754306517210,-537.09,0.00044108,120]
[377248349,1754306517237,-471.72,0.00044108,120]
[377248350,1754306517263,-1440.9,0.00044108,120]
[377248351,1754306517291,-400.0,0.00044108,120]
[377248352,1754306517322,-528.83,0.00044108,120]
[377248353,1754306517348,-736.02,0.00044108,120]
[377248354,1754306517376,-498.01,0.00044108,120]
[377248355,1754306517405,-491.0,0.00044108,120]
[377248356,1754306517432,-400.0,0.00044108,120]
[377248357,1754306517460,-867.42,0.00044108,120]
[377248358,1754306517486,-400.0,0.00044108,120]
[377248359,1754306517513,-1439.92,0.00044108,120]
[377248360,1754306517541,-594.92365296,0.00044108,120]
[377248361,1754306517568,-1490.04,0.00044108,120]
[377248362,1754306517595,-1335.12,0.00044108,120]
[377248363,1754306517621,-845.3,0.00044108,120]
[377248364,1754306517648,-400.0,0.00044108,120]
[377248365,1754306517674,-400.0,0.00044108,120]
[377248366,1754306517700,-1408.32,0.00044108,120]
[377248367,1754306517726,-354.44659169,0.00044108,120]
[377248368,1754306517753,-465.07,0.00044108,120]
[377248369,1754306517779,-400.0,0.00044108,120]
[377248370,1754306517807,-400.0,0.00044108,120]
[377248371,1754306517833,-400.0,0.00044109,120]
[377248372,1754306517859,-958.47,0.00044109,60]
[377248373,1754306517886,-577.79,0.00044109,120]
[377248374,1754306517912,-1741.31,0.00044109,120]
[377248375,1754306517944,-1044.0,0.00044109,120]
[377248376,1754306517972,-1097.82,0.00044109,120]
[377248377,1754306518000,-1614.51,0.00044109,120]
[377248378,1754306518028,-1128.88,0.00044109,120]
[377248379,1754306518055,-871.27,0.00044109,120]
[377248380,1754306518082,-16704.11,0.00044109,120]
[377248381,1754306518108,-2310.1,0.00044109,120]
[377248382,1754306518133,-571.02,0.00044109,120]
[377248383,1754306518159,-533.36,0.00044109,120]
[377248384,1754306518184,-703.22,0.00044109,120]
[377248385,1754306518209,-400.0,0.00044109,120]
[377248386,1754306518236,-1078.73,0.00044109,120]
[377248387,1754306518262,-752.2,0.00044109,120]
[377248388,1754306518289,-895.69,0.00044109,120]
[377248389,1754306518314,-1553.38,0.00044109,120]
[377248390,1754306518340,-592.99,0.00044109,120]
[377248391,1754306518367,-940.94,0.00044109,120]
[377248392,1754306518398,-1105.51,0.00044109,120]
[377248393,1754306518425,-1811.05,0.00044109,120]
[377248394,1754306518451,-526.38,0.00044109,120]
[377248395,1754306518480,-597.35,0.00044109,120]
[377248396,1754306518507,-745.47,0.00044109,120]
[377248397,1754306518532,-657.75,0.00044109,120]
[377248398,1754306518558,-1408.22,0.00044109,120]
[377248399,1754306518584,-783.78,0.00044109,120]
[377248400,1754306518610,-572.56,0.00044109,120]
[377248401,1754306518636,-504.92,0.00044109,120]
[377248402,1754306518662,-1176.6,0.00044109,120]
[377248403,1754306518688,-846.23,0.00044109,120]
[377248404,1754306518780,-924.68,0.00044109,120]
[377248405,1754306518808,-672.34,0.00044109,120]
[377248406,1754306518836,-1115.28,0.00044109,120]
[377248407,1754306518862,-412.4,0.00044109,120]
[377248408,1754306518888,-596.71,0.00044109,120]
[377248409,1754306518914,-427.49,0.00044109,120]
[377248410,1754306518942,-1068.33,0.00044109,120]
[377248411,1754306518968,-1597.56,0.00044109,120]
[377248412,1754306518995,-541.73,0.00044109,120]
[377248413,1754306519021,-1501.64,0.00044109,120]
[377248414,1754306519047,-771.35,0.00044109,120]
[377248415,1754306519073,-1301.38,0.00044109,120]
[377248416,1754306519099,-1867.48,0.00044109,120]
[377248417,1754306519125,-1709.3,0.00044109,120]
[377248418,1754306519152,-593.29,0.00044109,120]
[377248419,1754306519177,-1910.28,0.00044109,120]
[377248420,1754306519202,-2102.43,0.00044109,120]
[377248421,1754306519228,-1155.31,0.00044109,120]
[377248422,1754306519254,-2235.93,0.00044109,120]
[377248423,1754306519280,-1750.01,0.00044109,120]
[377248424,1754306519307,-2153.68,0.00044109,120]
[377248425,1754306519333,-553.35,0.00044109,120]
[377248426,1754306519360,-595.21,0.00044109,120]
[377248427,1754306519388,-519.62,0.00044109,120]
[377248428,1754306519414,-791.44,0.00044109,120]
[377248429,1754306519443,-678.44,0.00044109,120]
[377248430,1754306519472,-400.0,0.00044109,120]
[377248431,1754306519499,-586.89,0.00044109,120]
[377248432,1754306519526,-769.85,0.00044109,120]
[377248433,1754306519556,-606.25,0.00044109,120]
[377248434,1754306519585,-1035.47,0.00044109,120]
[377248435,1754306519614,-622.46,0.00044109,120]
[377248436,1754306519642,-978.23,0.00044109,120]
[377248437,1754306519668,-1405.02,0.00044109,120]
[377248438,1754306519695,-637.0,0.00044109,120]
[377248439,1754306519723,-1073.87,0.00044109,120]
[377248440,1754306519750,-421.52,0.00044109,120]
[377248441,1754306519782,-688.25,0.00044109,120]
[377248442,1754306519811,-1367.73,0.00044109,120]
[377248443,1754306519838,-450.7620093,0.00044109,120]
[377248444,1754306519864,-1161.99,0.00044109,120]
[377248445,1754306519891,-414.46,0.00044109,120]